{"text_format":"1","workbook":"xlsx","n_sheets":1,"sheets":["労働保険料・一般拠出金納付証明願"],"not_rendered":{"charts":0,"images":0,"macros":1,"external_links":0,"defined_names":46,"comments":0,"pivot_tables":0},"unopened":[],"bounds":{"document_bytes":16777216,"sheet_cells":100000,"rows_first":2000,"rows_last":500,"rows_between":2000,"halvings":0,"cell_chars":16384,"cell_head_chars":4096},"cells_cut":0,"cells_raw":0,"read":"whole","date_system":"1900"}

{"sheet":"労働保険料・一般拠出金納付証明願","index":0,"n_rows":87,"n_cols":64,"rows_kept":87,"cut":false,"hidden":false,"merged":[[20,4,29,6],[24,7,25,10],[35,61,35,62],[36,61,36,62],[37,61,37,62],[86,4,86,5],[86,7,86,10],[36,7,36,11],[37,7,37,8],[36,13,36,26],[31,4,36,6],[31,7,31,12],[32,7,32,12],[33,7,33,12],[35,16,35,26],[34,7,34,12],[35,7,35,14],[26,7,27,10],[28,7,29,10],[24,11,25,23],[26,11,27,23],[28,11,29,23],[20,7,21,10],[20,11,21,23],[22,7,23,10],[22,11,23,23],[20,63,21,63],[15,11,16,23],[7,4,16,8],[4,4,5,8],[19,40,19,41],[7,9,8,10],[7,11,8,23],[9,9,10,10],[11,9,12,10],[13,9,14,10],[15,9,16,10],[9,11,10,23],[11,11,12,23],[13,11,14,23],[20,57,21,57],[20,58,21,58],[20,59,21,59],[20,60,21,60],[20,61,21,62],[20,42,21,43],[20,46,21,49],[20,44,21,45],[35,59,36,60],[37,59,38,60],[35,54,36,55],[37,54,38,55],[24,57,25,57],[24,58,25,58],[24,59,25,59],[24,60,25,60],[24,61,25,62],[30,52,30,55],[38,61,38,62],[31,56,31,62],[33,42,34,63],[35,42,36,53],[37,42,38,53],[28,58,29,58],[28,59,29,59],[28,60,29,60],[28,61,29,62],[28,42,29,43],[28,46,29,49],[28,50,29,51],[28,52,29,53],[28,54,29,54],[32,42,32,43],[32,44,32,49],[30,34,32,41],[19,42,19,45],[19,46,19,49],[19,54,19,59],[19,60,19,63],[19,50,19,53],[22,59,23,59],[22,60,23,60],[30,44,30,49],[30,50,30,51],[22,61,23,62],[22,63,23,63],[24,63,25,63],[22,54,23,54],[22,55,23,55],[22,56,23,56],[22,57,23,57],[28,63,29,63],[28,56,29,56],[28,57,29,57],[22,58,23,58],[24,55,25,55],[24,56,25,56],[26,44,27,45],[24,44,25,45],[22,44,23,45],[26,55,27,55],[30,42,30,43],[31,42,31,43],[20,56,21,56],[20,55,21,55],[22,42,23,43],[22,46,23,49],[22,50,23,51],[22,52,23,53],[33,34,34,41],[35,34,38,41],[8,34,8,39],[24,42,25,43],[24,46,25,49],[24,50,25,51],[24,52,25,53],[24,54,25,54],[26,42,27,43],[26,46,27,49],[26,50,27,51],[26,52,27,53],[26,54,27,54],[28,55,29,55],[28,44,29,45],[32,50,32,62],[31,44,31,55],[30,57,30,59],[1,4,2,5],[1,6,2,22],[20,50,21,51],[20,52,21,53],[20,54,21,54],[2,33,3,64],[19,34,29,39],[20,40,21,41],[22,40,23,41],[24,40,25,41],[26,40,27,41],[28,40,29,41],[26,59,27,59],[26,60,27,60],[26,61,27,62],[26,63,27,63],[26,56,27,56],[26,57,27,57],[26,58,27,58],[10,56,10,57],[11,56,11,57],[12,56,12,57],[13,56,13,57],[14,56,14,57],[38,4,39,6],[38,7,39,27],[41,4,42,23],[51,4,52,23],[53,4,58,7],[53,8,54,11],[53,12,54,15],[53,16,58,19],[53,20,55,23],[55,8,56,11],[55,12,56,15],[56,20,58,23],[57,8,58,11],[57,12,58,15],[43,8,44,11],[45,8,46,11],[43,4,48,7],[47,8,48,11],[43,12,44,15],[45,12,46,15],[47,12,48,15],[50,40,50,46],[51,40,51,46],[52,40,52,46],[43,47,43,63],[44,47,44,63],[45,47,45,63],[43,16,48,19],[43,20,45,23],[46,20,48,23],[81,4,82,27],[50,47,50,63],[51,47,51,63],[4,9,5,14],[74,7,75,11],[76,7,77,11],[74,4,79,6],[78,7,79,11],[74,12,75,27],[76,12,77,27],[78,12,79,27],[52,47,52,60],[64,4,65,5],[64,6,65,23],[67,4,72,6],[71,7,72,11],[69,7,70,11],[67,7,68,11],[67,12,68,27],[69,12,70,27],[71,12,72,27],[45,40,45,46],[44,40,44,46],[43,40,43,46]]}
[]
[null,null,null,null,null,null,"の枠に必要事項を入力してください。"]
[null,null,null,null,null,null,null,null,null,null,null,null,null,null,null,null,null,null,null,null,null,null,null,null,null,null,null,null,null,null,null,null,null,"労働保険料・一般拠出金納付証明願"]
[]
[null,null,null,null,"申請日"]
[]
[null,null,null,null,null,null,null,null,null,null,null,null,null,null,null,null,null,null,null,null,null,null,null,null,null,null,null,null,null,null,null,null,null,null,null,null,null,null,null,null,null,null,null,null,null,null,null,null,null,null,null,null,null,null,null,null,null,null,null,null,{"$f":"IF(①労働保険番号=\"\",\"令和       年        月        日\",DBCS(元号&\"\"&TEXT(入力日,\"e\")&\"年\"&TEXT(入力日,\"m\")&\"月\"&TEXT(入力日,\"d\")&\"日\"))","v":"令和       年        月        日"}]
[null,null,null,null,"労働保険番号（14桁）",null,null,null,null,"①",null,null,null,null,null,null,null,null,null,null,null,null,null,null,null,null,null,null,null,null,null,null,null,null,"労働保険特別会計歳入徴収官"]
[null,null,null,null,null,null,null,null,null,null,null,null,null,null,null,null,null,null,null,null,null,null,null,null,null,null,null,null,null,null,null,null,null,null,"山梨労働局長",null,null,null,null,null,null,null,null,null,"殿"]
[null,null,null,null,null,null,null,null,null,"②"]
[null,null,null,null,null,null,null,null,null,null,null,null,null,null,null,null,null,null,null,null,null,null,null,null,null,null,null,null,null,null,null,null,null,null,null,null,null,null,null,null,null,null,null,null,null,null,null,null,null,null,null,null,null,null,null,null,"所在地：",null,{"$f":"IF(L21=\"\",IF(L8=\"\",\"\",\"所在地を入力してください\"),DBCS(L21))","v":""}]
[null,null,null,null,null,null,null,null,null,"③",null,null,null,null,null,null,null,null,null,null,null,null,null,null,null,null,null,null,null,null,null,null,null,null,null,null,null,null,null,null,null,null,null,null,null,null,null,null,null,null,null,null,null,null,null,null,"名　称：",null,{"$f":"IF(L23=\"\",IF(L8=\"\",\"\",\"名称を入力してください\"),DBCS(L23))","v":""}]
[null,null,null,null,null,null,null,null,null,null,null,null,null,null,null,null,null,null,null,null,null,null,null,null,null,null,null,null,null,null,null,null,null,null,null,null,null,null,null,null,null,null,null,null,null,null,null,null,null,null,null,null,null,"事業主",null,null,"代表者：",null,{"$f":"IF(L25=\"\",IF(L8=\"\",\"\",\"代表者を入力してください\"),DBCS(L25))","v":""}]
[null,null,null,null,null,null,null,null,null,"④",null,null,null,null,null,null,null,null,null,null,null,null,null,null,null,null,null,null,null,null,null,null,null,null,null,null,null,null,null,null,null,null,null,null,null,null,null,null,null,null,null,null,null,null,null,null,"担当者：",null,{"$f":"IF(L27=\"\",IF(L8=\"\",\"\",\"担当者を入力してください\"),DBCS(L27))","v":""}]
[null,null,null,null,null,null,null,null,null,null,null,null,null,null,null,null,null,null,null,null,null,null,null,null,null,null,null,null,null,null,null,null,null,null,null,null,null,null,null,null,null,null,null,null,null,null,null,null,null,null,null,null,null,null,null,null,"電話番号：",null,{"$f":"IF(L29=\"\",IF(L8=\"\",\"\",\"電話番号を入力してください\"),DBCS(L29))","v":""}]
[null,null,null,null,null,null,null,null,null,"⑤"]
[]
[null,null,null,null,null,null,null,null,null,null,null,null,null,null,null,null,null,null,null,null,null,null,null,null,null,null,null,null,null,null,null,null,null,null,"下記のとおり、証明書の交付をお願いします。"]
[]
[null,null,null,null,null,null,null,null,null,null,null,null,null,null,null,null,null,null,null,null,null,null,null,null,null,null,null,null,null,null,null,null,null,null,"労働保険番号",null,null,null,null,null,null,null,"府県",null,null,null,"所掌",null,null,null,"管轄",null,null,null,"基幹番号",null,null,null,null,null,"枝番号"]
[null,null,null,null,"事業主",null,null,"所在地",null,null,null,null,null,null,null,null,null,null,null,null,null,null,null,null,null,null,null,null,null,null,null,null,null,null,null,null,null,null,null,null,"①",null,{"$f":"DBCS(MID(①労働保険番号,1,1))","v":""},null,{"$f":"DBCS(MID(①労働保険番号,2,1))","v":""},null,{"$f":"DBCS(MID(①労働保険番号,3,1))","v":""},null,null,null,{"$f":"DBCS(MID(①労働保険番号,4,1))","v":""},null,{"$f":"DBCS(MID(①労働保険番号,5,1))","v":""},null,{"$f":"DBCS(MID(①労働保険番号,6,1))","v":""},{"$f":"DBCS(MID(①労働保険番号,7,1))","v":""},{"$f":"DBCS(MID(①労働保険番号,8,1))","v":""},{"$f":"DBCS(MID(①労働保険番号,9,1))","v":""},{"$f":"DBCS(MID(①労働保険番号,10,1))","v":""},{"$f":"DBCS(MID(①労働保険番号,11,1))","v":""},{"$f":"DBCS(MID(①労働保険番号,12,1))","v":""},{"$f":"DBCS(MID(①労働保険番号,13,1))","v":""},{"$f":"DBCS(MID(①労働保険番号,8,1))","v":""},{"$f":"DBCS(MID(①労働保険番号,14,1))","v":""}]
[]
[null,null,null,null,null,null,null,"名称",null,null,null,null,null,null,null,null,null,null,null,null,null,null,null,null,null,null,null,null,null,null,null,null,null,null,null,null,null,null,null,null,"②",null,{"$f":"DBCS(MID(②労働保険番号,1,1))","v":""},null,{"$f":"DBCS(MID(②労働保険番号,2,1))","v":""},null,{"$f":"DBCS(MID(②労働保険番号,3,1))","v":""},null,null,null,{"$f":"DBCS(MID(②労働保険番号,4,1))","v":""},null,{"$f":"DBCS(MID(②労働保険番号,5,1))","v":""},null,{"$f":"DBCS(MID(②労働保険番号,6,1))","v":""},{"$f":"DBCS(MID(②労働保険番号,7,1))","v":""},{"$f":"DBCS(MID(②労働保険番号,8,1))","v":""},{"$f":"DBCS(MID(②労働保険番号,9,1))","v":""},{"$f":"DBCS(MID(②労働保険番号,10,1))","v":""},{"$f":"DBCS(MID(②労働保険番号,11,1))","v":""},{"$f":"DBCS(MID(②労働保険番号,12,1))","v":""},{"$f":"DBCS(MID(②労働保険番号,13,1))","v":""},{"$f":"DBCS(MID(①労働保険番号,8,1))","v":""},{"$f":"DBCS(MID(②労働保険番号,14,1))","v":""}]
[]
[null,null,null,null,null,null,null,"代表者",null,null,null,null,null,null,null,null,null,null,null,null,null,null,null,null,null,null,null,null,null,null,null,null,null,null,null,null,null,null,null,null,"③",null,{"$f":"DBCS(MID(③労働保険番号,1,1))","v":""},null,{"$f":"DBCS(MID(③労働保険番号,2,1))","v":""},null,{"$f":"DBCS(MID(③労働保険番号,3,1))","v":""},null,null,null,{"$f":"DBCS(MID(③労働保険番号,4,1))","v":""},null,{"$f":"DBCS(MID(③労働保険番号,5,1))","v":""},null,{"$f":"DBCS(MID(③労働保険番号,6,1))","v":""},{"$f":"DBCS(MID(③労働保険番号,7,1))","v":""},{"$f":"DBCS(MID(③労働保険番号,8,1))","v":""},{"$f":"DBCS(MID(③労働保険番号,9,1))","v":""},{"$f":"DBCS(MID(③労働保険番号,10,1))","v":""},{"$f":"DBCS(MID(③労働保険番号,11,1))","v":""},{"$f":"DBCS(MID(③労働保険番号,12,1))","v":""},{"$f":"DBCS(MID(③労働保険番号,13,1))","v":""},{"$f":"DBCS(MID(①労働保険番号,8,1))","v":""},{"$f":"DBCS(MID(③労働保険番号,14,1))","v":""}]
[]
[null,null,null,null,null,null,null,"担当者",null,null,null,null,null,null,null,null,null,null,null,null,null,null,null,null,null,null,null,null,null,null,null,null,null,null,null,null,null,null,null,null,"④",null,{"$f":"DBCS(MID(④労働保険番号,1,1))","v":""},null,{"$f":"DBCS(MID(④労働保険番号,2,1))","v":""},null,{"$f":"DBCS(MID(④労働保険番号,3,1))","v":""},null,null,null,{"$f":"DBCS(MID(④労働保険番号,4,1))","v":""},null,{"$f":"DBCS(MID(④労働保険番号,5,1))","v":""},null,{"$f":"DBCS(MID(④労働保険番号,6,1))","v":""},{"$f":"DBCS(MID(④労働保険番号,7,1))","v":""},{"$f":"DBCS(MID(④労働保険番号,8,1))","v":""},{"$f":"DBCS(MID(④労働保険番号,9,1))","v":""},{"$f":"DBCS(MID(④労働保険番号,10,1))","v":""},{"$f":"DBCS(MID(④労働保険番号,11,1))","v":""},{"$f":"DBCS(MID(③労働保険番号,12,1))","v":""},{"$f":"DBCS(MID(③労働保険番号,13,1))","v":""},{"$f":"DBCS(MID(①労働保険番号,8,1))","v":""},{"$f":"DBCS(MID(③労働保険番号,14,1))","v":""}]
[]
[null,null,null,null,null,null,null,"電話番号",null,null,null,null,null,null,null,null,null,null,null,null,null,null,null,null,null,null,null,null,null,null,null,null,null,null,null,null,null,null,null,null,"⑤",null,{"$f":"DBCS(MID(⑤労働保険番号,1,1))","v":""},null,{"$f":"DBCS(MID(⑤労働保険番号,2,1))","v":""},null,{"$f":"DBCS(MID(⑤労働保険番号,3,1))","v":""},null,null,null,{"$f":"DBCS(MID(⑤労働保険番号,4,1))","v":""},null,{"$f":"DBCS(MID(⑤労働保険番号,5,1))","v":""},null,{"$f":"DBCS(MID(⑤労働保険番号,6,1))","v":""},{"$f":"DBCS(MID(⑤労働保険番号,7,1))","v":""},{"$f":"DBCS(MID(⑤労働保険番号,8,1))","v":""},{"$f":"DBCS(MID(⑤労働保険番号,9,1))","v":""},{"$f":"DBCS(MID(⑤労働保険番号,10,1))","v":""},{"$f":"DBCS(MID(⑤労働保険番号,11,1))","v":""},{"$f":"DBCS(MID(⑤労働保険番号,12,1))","v":""},{"$f":"DBCS(MID(⑤労働保険番号,13,1))","v":""},{"$f":"DBCS(MID(①労働保険番号,8,1))","v":""},{"$f":"DBCS(MID(⑤労働保険番号,14,1))","v":""}]
[]
[null,null,null,null,null,null,null,null,null,null,null,null,null,null,null,null,null,null,null,null,null,null,null,null,null,null,null,null,null,null,null,null,null,null,"申請理由",null,null,null,null,null,null,null,null,null,"入札参加",null,null,null,null,null,null,null,"経営審査",null,null,null,null,"領収証書紛失"]
[false,null,null,null,"申請理由",null,null,"　　 入札参加",null,null,null,null,null,null,null,"・","□に✓を入れてください。",null,null,null,null,null,null,null,null,null,null,null,null,null,null,null,null,null,null,null,null,null,null,null,null,null,null,null,"助成金等申請（助成金等の種類：",null,null,null,null,null,null,null,null,null,null,null,{"$f":"IF(Q36=\"\",IF(A35=TRUE,\"※助成金等の種類を入力してください。\",\"\"),IF(A35=TRUE,Q36,\"※☐に✓をいれてください。\"))","v":""},{"$f":"IF(E45=\"\",IF(K29=\"\",\"\",\"所在地を入力してください\"),DBCS(E45))","v":""},{"$f":"IF(F44=\"\",IF(L29=\"\",\"\",\"所在地を入力してください\"),DBCS(F44))","v":""},{"$f":"IF(G44=\"\",IF(M29=\"\",\"\",\"所在地を入力してください\"),DBCS(G44))","v":""},{"$f":"IF(N42=\"\",IF(N29=\"\",\"\",\"所在地を入力してください\"),DBCS(N42))","v":""},"","","）"]
[false,null,null,null,null,null,null,"　　 経営審査",null,null,null,null,null,null,null,"・","（　）内の入力をしてください。",null,null,null,null,null,null,null,null,null,null,null,null,null,null,null,null,null,null,null,null,null,null,null,null,null,null,null,"その他（",null,null,null,null,null,{"$f":"IF(N37=\"\",IF(A37=TRUE,\"その他()内の入力をしてください。\",\"\"),IF(A37=TRUE,N37,\"※☐に✓をいれてください。\"))","v":""},null,null,null,null,null,null,null,null,null,null,null,null,"）"]
[false,null,null,null,null,null,null,"　　 領収書紛失",null,null,null,null,null,null,null,null,null,null,null,null,null,null,null,null,null,null,null,null,null,null,null,null,null,null,"証明書提出先",null,null,null,null,null,null,null,{"$f":"H39","v":0}]
[false,null,null,null,null,null,null,"　　 助成金等申請"]
[null,null,null,null,null,null,null,"　　 助成金等の種類：",null,null,null,null,null,null,null,"（",null,null,null,null,null,null,null,null,null,null,null,"）",null,null,null,null,null,null,"希望する\n証明の種類",null,null,null,null,null,null,null,"・未納がないことの証明",null,null,null,null,null,null,null,null,null,null,null,"対象年度",null,{"$f":"I46","v":0},{"$f":"M46","v":0},"年度","必要部数",null,{"$f":"U44","v":0},null,"枚"]
[false,null,null,null,null,null,null,"     その他",null,null,null,null,"（",null,null,null,null,null,null,null,null,null,null,null,null,null,null,"）",null,null,null,null,null,null,null,null,null,null,null,null,null,null,null,null,null,null,null,null,null,null,null,null,null,null,null,null,{"$f":"I48","v":0},{"$f":"M48","v":0},"年度",null,null,{"$f":"U47","v":0},null,"枚"]
[null,null,null,null,null,null,null,null,null,null,null,null,null,null,null,null,null,null,null,null,null,null,null,null,null,null,null,null,null,null,null,null,null,null,null,null,null,null,null,null,null,null,"・労働保険料等納付済額証明",null,null,null,null,null,null,null,null,null,null,null,"対象年度",null,{"$f":"I56","v":0},{"$f":"M56","v":0},"年度","必要部数",null,{"$f":"U54","v":0},null,"枚"]
[null,null,null,null,"証明書\n提出先",null,null,null,null,null,null,null,null,null,null,null,null,null,null,null,null,null,null,null,null,null,null,null,null,null,null,null,null,null,null,null,null,null,null,null,null,null,null,null,null,null,null,null,null,null,null,null,null,null,null,null,{"$f":"I58","v":0},{"$f":"M58","v":0},"年度",null,null,{"$f":"U57","v":0},null,"枚"]
[]
[null,null,null,null,null,null,null,null,null,null,null,null,null,null,null,null,null,null,null,null,null,null,null,null,null,null,null,null,null,null,null,null,null,null,null,"代理人より申請をする場合は、以下にも記入願います。"]
[null,null,null,null,"未納がないことの証明",null,null,null,null,null,null,null,null,null,null,null,null,null,null,null,null,null,null,null,null,null,null,null,null,null,null,null,null,null,null,null,null,null,null,null,null,null,null,null,null,null,null,null,null,null,null,null,"委任状"]
[]
[null,null,null,null,"対象年度",null,null,null,"元号",null,null,null,"年度",null,null,null,"必要部数",null,null,null,null,null,null,null,null,null,null,null,null,null,null,null,null,null,null,null,null,null,null,null,"住所：",null,null,null,null,null,null,{"$f":"M68","v":0}]
[null,null,null,null,null,null,null,null,null,null,null,null,null,null,null,null,null,null,null,null,null,null,null,null,null,null,null,null,null,null,null,null,null,null,null,"代理人",null,null,null,null,"氏名：",null,null,null,null,null,null,{"$f":"M70","v":0}]
[null,null,null,null,null,null,null,null,null,null,null,null,null,null,null,null,null,null,null,null,null,null,null,null,null,null,null,null,null,null,null,null,null,null,null,null,null,null,null,null,"連絡先電話番号：",null,null,null,null,null,null,{"$f":"M72","v":0}]
[]
[null,null,null,null,null,null,null,null,null,null,null,null,null,null,null,null,null,null,null,null,null,null,null,null,null,null,null,null,null,null,null,null,null,null,null,"上記の者を代理人と定め、"]
[null,null,null,null,null,null,null,null,null,null,null,null,null,null,null,null,null,null,null,null,null,null,null,null,null,null,null,null,null,null,null,null,null,null,null,"労働保険料・一般拠出金納付証明願に関することを委任します。"]
[]
[null,null,null,null,null,null,null,null,null,null,null,null,null,null,null,null,null,null,null,null,null,null,null,null,null,null,null,null,null,null,null,null,null,null,null,null,null,null,null,null,"所在地：",null,null,null,null,null,null,{"$f":"M75","v":0}]
[null,null,null,null,"労働保険料等納付済額証明",null,null,null,null,null,null,null,null,null,null,null,null,null,null,null,null,null,null,null,null,null,null,null,null,null,null,null,null,null,null,"事業主",null,null,null,null,"名称：",null,null,null,null,null,null,{"$f":"M77","v":0}]
[null,null,null,null,null,null,null,null,null,null,null,null,null,null,null,null,null,null,null,null,null,null,null,null,null,null,null,null,null,null,null,null,null,null,null,null,null,null,null,null,"氏名：",null,null,null,null,null,null,{"$f":"M79","v":0},null,null,null,null,null,null,null,null,null,null,null,null,null,"印"]
[null,null,null,null,"対象年度",null,null,null,"元号",null,null,null,"年度",null,null,null,"必要部数"]
[null,null,null,null,null,null,null,null,null,null,null,null,null,null,null,null,null,null,null,null,null,null,null,null,null,null,null,null,null,null,null,null,null,null,null,null,null,null,null,null,"（法人の場合は代表者職名及び氏名）"]
[]
[]
[]
[]
[]
[]
[]
[]
[]
[null,null,null,null,null,null,"の枠は代理人が申請する場合、入力してください"]
[]
[]
[null,null,null,null,"代理人",null,null,"住所"]
[]
[null,null,null,null,null,null,null,"氏名"]
[]
[null,null,null,null,null,null,null,"連絡先電話番号"]
[]
[]
[null,null,null,null,"事業主",null,null,"所在地"]
[]
[null,null,null,null,null,null,null,"名称"]
[]
[null,null,null,null,null,null,null,"氏名"]
[]
[]
[null,null,null,null,"※委任状の事業主署名欄には必ず代表者印の押印が必要です。"]
[]
[]
[]
[]
[null,null,null,null,"令和",null,null,{"$f":"IF(J5=\"\",TODAY(),J5)","v":"2023-02-15"}]